fUSD/lending_fUSD_20240214
["ID","MTS","AMOUNT","RATE_DAILY","PERIOD"]
[313987904,1707916233578,-500.0,0.00036712,2]
[313987905,1707916233588,-500.0,0.00036712,2]
[313987906,1707916233598,-732.81,0.00036712,2]
[313987907,1707916233608,-548.11089369,0.00036712,2]
[313987908,1707916233618,-500.0,0.00036712,2]
[313987909,1707916233627,-500.0,0.00036712,2]
[313987910,1707916233637,-500.0,0.00036712,2]
[313987911,1707916233647,-500.0,0.00036712,2]
[313987912,1707916233658,-504.87,0.00036712,2]
[313987913,1707916233668,-500.0,0.00036712,2]
[313987914,1707916233678,-500.0,0.00036712,2]
[313987915,1707916233688,-500.0,0.00036712,2]
[313987916,1707916233698,-525.31028226,0.00036712,2]
[313987917,1707916233708,-500.0,0.00036712,2]
[313987918,1707916233717,-506.07848017,0.00036712,2]
[313987919,1707916233727,-720.31,0.00036712,2]
[313987920,1707916233737,-500.0,0.00036712,2]
[313987921,1707916233747,-424.49233036,0.00036712,2]
[313987922,1707916233757,-500.0,0.00036712,2]
[313987923,1707916233767,-500.0,0.00036712,2]
[313987924,1707916233777,-1544.74,0.00036712,2]
[313987925,1707916233787,-534.6322796,0.00036712,2]
[313987926,1707916233797,-500.0,0.00036712,2]
[313987927,1707916233806,-500.0,0.00036712,2]
[313987928,1707916233816,-500.0,0.00036712,2]
[313987929,1707916233825,-531.0,0.00036712,2]
[313987930,1707916233836,-160.2854997,0.00036712,2]
[313987931,1707916233846,-1336.31,0.00036712,2]
[313987932,1707916233856,-500.0,0.00036712,2]
[313987933,1707916233866,-500.0,0.00036712,2]
[313987934,1707916233876,-500.0,0.00036712,2]
[313987935,1707916233886,-500.0,0.00036712,2]
[313987936,1707916233896,-500.0,0.00036712,2]
[313987937,1707916233906,-558.16,0.00036712,2]
[313987938,1707916233916,-507.36436927,0.00036712,2]
[313987939,1707916233925,-500.09719459,0.00036712,2]
[313987940,1707916233936,-749.15,0.00036712,2]
[313987941,1707916233945,-1156.82948346,0.00036715,9]
[313987942,1707916233956,-862.87,0.00036762,2]
[313987943,1707916233966,-4531.45,0.00036762,2]
[313987944,1707916233978,-15629.42,0.00036762,2]
[313987945,1707916233990,-995.37,0.00036762,2]
[313987946,1707916234000,-500.0,0.00036762,2]
[313987947,1707916234011,-4077.15,0.00036762,2]
[313987948,1707916234021,-851.74,0.00036762,2]
[313987949,1707916234031,-1547.3,0.00036762,2]
[313987950,1707916234043,-4058.51,0.00036762,2]
[313987951,1707916234055,-500.0,0.00036762,2]
[313987952,1707916234066,-500.0,0.00036762,2]
[313987953,1707916234077,-500.0,0.00036762,2]
[313987954,1707916234087,-898.28,0.00036762,2]
[313987955,1707916234097,-1551.13,0.00036762,2]
[313987956,1707916234107,-13201.45,0.00036762,2]
[313987957,1707916234117,-1142.69,0.00036762,2]
[313987958,1707916234126,-1067.73,0.00036762,2]
[313987959,1707916234136,-3809.51,0.00036762,2]
[313987960,1707916234145,-1219.08,0.00036762,2]
[313987961,1707916234156,-3821.52,0.00036762,2]
[313987962,1707916234165,-1297.78,0.00036762,2]
[313987963,1707916234175,-1197.84,0.00036762,2]
[313987964,1707916234185,-1048.41,0.00036762,2]
[313987965,1707916234194,-500.0,0.00036762,2]
[313987966,1707916234204,-338.89475391,0.00036769,2]
[313987967,1707916234214,-794.57,0.0003677,2]
[313987968,1707916234223,-1112.25,0.0003677,2]
[313987969,1707916234233,-4332.9,0.0003677,2]
[313987970,1707916234243,-1133.08,0.0003677,2]
[313987971,1707916234252,-12231.11,0.0003677,2]
[313987972,1707916234435,-7012.67,0.0003677,2]
[313987973,1707916234445,-720.04,0.0003677,2]
[313987974,1707916234454,-500.0,0.0003677,2]
[313987975,1707916234464,-4520.29,0.0003677,2]
[313987976,1707916234473,-2070.72,0.0003677,2]
[313987977,1707916234483,-1526.84,0.0003677,2]
[313987978,1707916234492,-12772.37,0.0003677,2]
[313987979,1707916234501,-1725.08,0.0003677,2]
[313987980,1707916234541,-3132.82,0.0003677,2]
[313987981,1707916234551,-590.91,0.0003677,2]
[313987982,1707916234561,-3541.6,0.0003677,2]
[313987983,1707916234571,-14300.11,0.0003677,2]
[313987984,1707916234580,-956.88,0.0003677,2]
[313987985,1707916234590,-2842.94,0.00036772,2]
[313987986,1707916234600,-500.0,0.00036772,2]
[313987987,1707916234609,-695.63,0.00036772,2]
[313987988,1707916234618,-555.13732988,0.00036772,2]
[313987989,1707916234628,-823.93,0.00036772,2]
[313987990,1707916234637,-529.94904377,0.00036772,2]
[313987991,1707916234646,-500.0,0.00036772,2]
[313987992,1707916234656,-258.16735881,0.00036772,2]
[313987993,1707916234666,-500.0,0.00036772,2]
[313987994,1707916234675,-500.0,0.00036772,2]
[313987995,1707916234684,-1167.47,0.00036772,2]
[313987996,1707916234694,-500.0,0.00036772,2]
[313987997,1707916234704,-500.0,0.00036772,2]
[313987998,1707916234714,-500.0,0.00036772,2]
[313987999,1707916234724,-500.0,0.00036772,2]
[313988000,1707916234733,-5993.79,0.00036772,2]
[313988001,1707916234743,-500.0,0.00036772,2]
[313988002,1707916234752,-1735.86,0.00036772,2]
[313988003,1707916234761,-501.97454668,0.00036772,2]
[313988004,1707916234770,-500.0,0.00036772,2]
[313988005,1707916234780,-500.0,0.00036772,2]
[313988006,1707916234789,-500.0,0.00036772,2]
[313988007,1707916234798,-500.0,0.00036772,10]
[313988008,1707916234807,-545.6212044,0.00036772,2]
[313988009,1707916234817,-9169.75,0.00036772,2]
[313988010,1707916234826,-500.0,0.00036772,2]
[313988011,1707916234836,-500.0,0.00036772,2]
[313988012,1707916234844,-3800.51,0.00036772,2]
[313988013,1707916234853,-500.0,0.00036772,2]
[313988014,1707916234863,-5736.88,0.00036772,2]
[313988015,1707916234872,-500.0,0.00036772,2]
[313988016,1707916234881,-251.15320876,0.00036772,2]
[313988017,1707916234891,-500.0,0.00036772,2]
[313988018,1707916234900,-500.0,0.00036772,2]
[313988019,1707916234910,-7481.74,0.00036772,2]
[313988020,1707916234919,-500.0,0.00036772,2]
[313988021,1707916234928,-500.0,0.00036772,2]
[313988022,1707916234937,-500.0,0.00036772,2]
[313988023,1707916234947,-500.0,0.00036772,2]
[313988024,1707916234958,-265.19,0.00036772,2]
[313988025,1707916234968,-502.01002138,0.00036772,2]
[313988026,1707916234979,-5696.94,0.00036772,2]
[313988027,1707916234988,-9283.61,0.00036772,2]
[313988028,1707916234998,-500.0,0.00036772,2]
[313988029,1707916235008,-500.0,0.00036772,2]
[313988030,1707916235018,-500.0,0.00036772,2]
[313988031,1707916235027,-1656.45,0.00036772,2]
[313988032,1707916235037,-500.0,0.00036772,2]
[313988033,1707916235048,-500.0,0.00036772,2]
[313988034,1707916235057,-500.0,0.00036772,2]
[313988035,1707916235067,-500.0,0.00036772,2]
[313988036,1707916235076,-500.0,0.00036772,2]
[313988037,1707916235086,-876.29,0.00036772,2]
[313988038,1707916235095,-500.0,0.00036772,2]
[313988039,1707916235104,-533.10194319,0.00036772,2]
[313988040,1707916235114,-1291.39,0.00036772,2]
[313988041,1707916235124,-471.05010783,0.00036772,2]
[313988042,1707916235133,-500.0,0.00036772,2]
[313988043,1707916235143,-500.0,0.00036772,2]
[313988044,1707916235153,-1651.23,0.00036772,2]
[313988045,1707916235162,-500.0,0.00036772,2]
[313988046,1707916235172,-500.0,0.00036772,2]
[313988047,1707916235181,-1907.3,0.00036772,2]
[313988048,1707916235190,-500.0,0.00036772,2]
[313988049,1707916235200,-511.35709252,0.00036772,2]
[313988050,1707916235209,-500.0,0.00036772,2]
[313988051,1707916235218,-500.0,0.00036772,2]
[313988052,1707916235228,-745.98,0.00036772,2]
[313988053,1707916235238,-1314.26607768,0.00036772,2]
[313988054,1707916236029,-328.53392232,0.00036772,2]
[313988055,1707916236038,-500.0,0.00036772,2]
[313988056,1707916236049,-24.61764034,0.00036772,2]
[313988057,1707916236061,-475.38235966,0.00036772,2]
[313988058,1707916236070,-266.49874094,0.00036772,2]
[313988059,1707916236090,-245.66181547,0.00036772,2]
[313988060,1707916236100,-500.0,0.00036772,2]
[313988061,1707916236109,-500.0,0.00036772,2]
[313988062,1707916236118,-676.56,0.00036772,2]
[313988063,1707916236128,-675.97008278,0.00036772,2]
[313988064,1707916236140,-1022.76991722,0.00036772,2]
[313988065,1707916236149,-3220.29,0.00036772,2]
[313988066,1707916236160,-911.94008278,0.00036772,2]
[313988067,1707916236289,-551.35991722,0.00036772,2]
[313988068,1707916236299,-500.0,0.00036772,2]
[313988069,1707916236308,-511.68021801,0.00036772,2]
[313988070,1707916236318,-533.83717182,0.00036772,2]
[313988071,1707916236328,-607.54,0.00036772,2]
[313988072,1707916236337,-1203.97,0.00036772,2]
[313988073,1707916236346,-545.04806789,0.00036772,2]
[313988074,1707916236356,-500.0,0.00036772,2]
[313988075,1707916236365,-500.0,0.00036772,2]
[313988076,1707916236375,-500.0,0.00036772,2]
[313988077,1707916236384,-500.0,0.00036772,2]
[313988078,1707916236394,-4603.39637168,0.00036772,2]
[313988079,1707916236407,-3633.92362832,0.00036772,2]
[313988080,1707916236417,-500.0,0.00036772,2]
[313988081,1707916236426,-500.0,0.00036772,2]
[313988082,1707916236435,-517.07667296,0.00036772,2]
[313988083,1707916236445,-500.0,0.00036772,2]
[313988084,1707916236454,-388.52302307,0.00036772,2]
[313988085,1707916236466,-131.74255576,0.00036772,2]
[313988086,1707916236476,-653.97562224,0.00036772,2]
[313988097,1707916238637,-500.0,0.00036712,2]
[313988098,1707916238647,-191.30437776,0.00036772,2]
[313988099,1707916238657,-739.28,0.00036772,2]
[313988100,1707916238666,-500.0,0.00036772,2]
[313988101,1707916238675,-500.0,0.00036772,2]
[313988102,1707916238684,-500.0,0.00036772,2]
[313988103,1707916238693,-500.0,0.00036772,2]
[313988104,1707916238702,-539.66079496,0.00036772,2]
[313988105,1707916238712,-5105.84,0.00036772,2]
[313988106,1707916238721,-500.0,0.00036772,2]
[313988107,1707916238730,-515.49587774,0.00036772,2]
[313988108,1707916238739,-732.74,0.00036772,2]
[313988109,1707916238748,-578.41740949,0.00036772,2]
[313988110,1707916238758,-1571.19,0.00036772,2]
[313988111,1707916238767,-500.0,0.00036772,2]
[313988112,1707916238776,-1228.39,0.00036772,2]
[313988113,1707916238785,-500.0,0.00036772,2]
[313988114,1707916238795,-822.38,0.00036772,2]
[313988115,1707916238803,-500.0,0.00036772,2]
[313988116,1707916238812,-505.50728211,0.00036772,2]
[313988117,1707916238821,-500.0,0.00036772,2]
[313988118,1707916238831,-500.0,0.00036772,2]
[313988119,1707916238840,-500.0,0.00036772,2]
[313988120,1707916238849,-2969.49,0.00036772,2]
[313988121,1707916238858,-3499.06075786,0.00036772,2]
[313988122,1707916238870,-5654.73,0.00036772,2]
[313988123,1707916238881,-8531.4090632,0.00036772,2]
[313988124,1707916238893,-16328.53017894,0.00036772,2]
[313988125,1707916238902,-512.15443418,0.00036772,2]
[313988126,1707916238911,-637.27,0.00036772,2]
[313988127,1707916238920,-1303.05,0.00036772,2]
[313988128,1707916238928,-500.0,0.00036772,2]
[313988129,1707916238938,-500.0,0.00036772,2]
[313988130,1707916238947,-1125.9,0.00036772,2]
[313988131,1707916238957,-500.0,0.00036772,2]
[313988132,1707916238967,-500.0,0.00036772,2]
[313988133,1707916238978,-489.02898106,0.00036772,2]
[313988134,1707916238987,-500.0,0.00036772,2]
[313988135,1707916238996,-500.0,0.00036772,2]
[313988136,1707916239006,-500.0,0.00036772,2]
[313988137,1707916239015,-500.0,0.00036772,2]
[313988138,1707916239024,-500.0,0.00036772,2]
[313988139,1707916239033,-500.0,0.00036772,2]
[313988140,1707916239043,-500.0,0.00036772,2]
[313988141,1707916239052,-2833.29,0.00036772,2]
[313988142,1707916239061,-1198.92,0.00036772,2]
[313988143,1707916239070,-500.0,0.00036772,2]
[313988144,1707916239079,-525.75711606,0.00036772,2]
[313988145,1707916239088,-5044.63,0.00036772,2]
[313988146,1707916239097,-4570.54,0.00036772,2]
[313988147,1707916239106,-500.0,0.00036772,2]
[313988148,1707916239115,-5076.08,0.00036772,2]
[313988149,1707916239124,-590.40933706,0.00036772,2]
[313988150,1707916239133,-540.76621989,0.00036772,2]
[313988151,1707916239143,-500.0,0.00036772,2]
[313988152,1707916239152,-500.0,0.00036772,2]
[313988153,1707916239161,-767.89,0.00036772,2]
[313988154,1707916239170,-500.0,0.00036772,2]
[313988155,1707916239179,-500.0,0.00036772,2]
[313988156,1707916239189,-500.0,0.00036772,2]
[313988157,1707916239199,-500.0,0.00036772,2]
[313988158,1707916239209,-500.0,0.00036772,2]
[313988159,1707916239219,-1356.75,0.00036772,2]
[313988160,1707916239228,-3449.73,0.00036772,2]
[313988161,1707916239237,-500.0,0.00036772,2]
[313988162,1707916239246,-500.0,0.00036772,2]
[313988163,1707916239256,-500.0,0.00036772,2]
[313988164,1707916239266,-796.28,0.00036772,2]
[313988165,1707916239276,-558.42340322,0.00036772,2]
[313988166,1707916239286,-1161.91,0.00036772,2]
[313988167,1707916239295,-751.05,0.00036772,2]
[313988168,1707916239304,-500.0,0.00036772,2]
[313988169,1707916239314,-710.59,0.00036772,2]
[313988170,1707916239325,-500.0,0.00036772,2]
[313988171,1707916239335,-3069.56,0.00036772,2]
[313988172,1707916239344,-500.0,0.00036772,2]
[313988173,1707916239354,-214.76605538,0.00036772,2]
[313988174,1707916239363,-508.04351101,0.00036772,2]
[313988175,1707916239373,-1185.54,0.00036772,2]
[313988176,1707916239382,-5903.43,0.00036772,2]
[313988177,1707916239391,-27413.95,0.00036772,2]
[313988178,1707916239401,-1079.78,0.00036772,2]
[313988179,1707916239413,-525.83286384,0.00036772,2]
[313988180,1707916239423,-500.0,0.00036772,2]
[313988181,1707916239432,-741.81,0.00036772,2]
[313988182,1707916239442,-2000.0,0.00036772,2]
[313988183,1707916239451,-500.0,0.00036772,2]
[313988184,1707916239461,-1557.73,0.00036772,2]
[313988185,1707916239470,-500.0,0.00036772,2]
[313988186,1707916239479,-500.0,0.00036772,2]
[313988187,1707916239488,-1147.45,0.00036772,2]
[313988188,1707916239497,-1150.34,0.00036772,2]
[313988189,1707916239507,-545.13219285,0.00036772,2]
[313988190,1707916239516,-323.69042089,0.00036772,2]
[313988191,1707916239525,-500.0,0.00036772,2]
[313988192,1707916239535,-500.0,0.00036772,2]
[313988193,1707916239545,-632.95,0.00036772,2]
[313988194,1707916239555,-500.0,0.00036772,2]
[313988195,1707916239566,-500.0,0.00036772,2]
[313988196,1707916239575,-2268.68,0.00036772,2]
[313988197,1707916239585,-500.0,0.00036772,2]
[313988198,1707916239594,-500.0,0.00036772,2]
[313988199,1707916239603,-2242.92,0.00036772,2]
[313988200,1707916239612,-443.02108065,0.00036772,2]
[313988201,1707916239779,-56.97891935,0.00036772,2]
[313988202,1707916239788,-777.19,0.00036772,2]
[313988203,1707916239797,-500.0,0.00036772,2]
[313988204,1707916239807,-1040.25,0.00036772,2]
[313988205,1707916239816,-859.57,0.00036772,2]
[313988206,1707916239825,-524.03025684,0.00036772,2]
[313988207,1707916239834,-3584.17,0.00036772,2]
[313988208,1707916239843,-280.23041323,0.00036772,2]
[313988209,1707916239853,-1481.81,0.00036772,2]
[313988210,1707916239862,-597.35956745,0.00036772,2]
[313988211,1707916239871,-500.0,0.00036772,2]
[313988212,1707916239880,-548.48128249,0.00036772,2]
[313988213,1707916239889,-858.32,0.00036772,2]
[313988214,1707916239898,-500.0,0.00036772,2]
[313988215,1707916239908,-500.0,0.00036772,2]
[313988216,1707916239917,-1008.71,0.00036772,2]
[313988217,1707916239926,-4101.02,0.00036772,2]
[313988218,1707916239935,-500.0,0.00036772,2]
[313988219,1707916239944,-500.0,0.00036772,2]
[313988220,1707916239956,-4735.51,0.00036772,2]
[313988221,1707916239967,-457.63541515,0.00036772,2]
[313988222,1707916239977,-509.57924973,0.00036772,2]
[313988223,1707916239986,-6091.94,0.00036772,2]
[313988224,1707916239995,-589.54,0.00036772,2]
[313988225,1707916240005,-547.38,0.00036772,2]
[313988226,1707916240014,-500.0,0.00036772,2]
[313988227,1707916240022,-3608.4,0.00036772,2]
[313988228,1707916240040,-1263.98,0.00036772,2]
[313988229,1707916240049,-500.0,0.00036772,2]
[313988230,1707916240058,-500.0,0.00036772,2]
[313988231,1707916240067,-4570.4,0.00036772,2]
[313988232,1707916240078,-500.0,0.00036772,2]
[313988233,1707916240088,-500.0,0.00036772,2]
[313988234,1707916240096,-239.13646399,0.00036772,2]
[313988235,1707916240105,-15597.91,0.00036772,2]
[313988236,1707916240115,-502.69346134,0.00036772,2]
[313988237,1707916240124,-641.83,0.00036772,2]
[313988238,1707916240132,-1648.16,0.00036772,2]
[313988239,1707916240142,-629.5991942,0.00036772,2]
[313988240,1707916240151,-500.0,0.00036772,2]
[313988241,1707916240161,-500.0,0.00036772,2]
[313988242,1707916240170,-1782.96,0.00036772,2]
[313988243,1707916240179,-512.59090714,0.00036772,2]
[313988244,1707916240188,-6843.95,0.00036772,2]
[313988245,1707916240197,-194.72710469,0.00036772,2]
[313988246,1707916240209,-500.0,0.00036772,2]
[313988247,1707916240218,-500.0,0.00036772,2]
[313988248,1707916240227,-2990.18306389,0.00036772,2]
[313988255,1707916240372,-3094.95000001,0.00036772,2]
[313988259,1707916240610,-825.7369361,0.00036772,2]
[313988260,1707916240619,-625.9,0.00036772,2]
[313988261,1707916240629,-1116.7,0.00036772,2]
[313988262,1707916240639,-586.77,0.00036772,2]
[313988263,1707916240648,-500.0,0.00036772,2]
[313988264,1707916240658,-500.0,0.00036772,2]
[313988265,1707916240667,-508.06699577,0.00036772,2]
[313988266,1707916240676,-801.22,0.00036772,2]
[313988267,1707916240685,-3367.11,0.00036772,2]
[313988268,1707916240694,-513.17046226,0.00036772,2]
[313988269,1707916240703,-1264.56,0.00036772,2]
[313988270,1707916240711,-500.0,0.00036772,2]
[313988271,1707916240720,-1192.26,0.00036772,2]
[313988272,1707916240729,-500.0,0.00036772,2]
[313988273,1707916240738,-500.0,0.00036772,2]
[313988274,1707916240748,-3070.2,0.00036772,2]
[313988275,1707916240758,-500.0,0.00036772,2]
[313988276,1707916240769,-538.8,0.00036772,2]
[313988277,1707916240778,-2043.54849412,0.00036772,2]
[313988278,1707916241306,-3197.66097465,0.0002848,7]
[313988279,1707916241316,-69.54150588,0.00036772,2]
[313988280,1707916241326,-785.33,0.00036772,2]
[313988281,1707916241335,-815.54,0.00036772,2]
[313988282,1707916241347,-536.79,0.00036772,2]
[313988283,1707916241368,-1205.57,0.00036772,2]
[313988284,1707916241384,-502.59,0.00036772,2]
[313988285,1707916241404,-1459.27,0.00036772,2]
[313988286,1707916241424,-599.66,0.00036772,2]
[313988287,1707916241439,-1033.75,0.00036772,2]
[313988288,1707916241458,-2159.0,0.00036772,2]
[313988289,1707916241476,-500.0,0.00036772,2]
[313988290,1707916241493,-787.01,0.00036772,2]
[313988292,1707916241509,-500.0,0.00036772,2]
[313988295,1707916241525,-538.64488267,0.00036772,2]
[313988297,1707916241543,-500.0,0.00036772,2]
[313988300,1707916241563,-500.0,0.00036772,2]
[313988302,1707916241577,-500.0,0.00036772,2]
[313988304,1707916241592,-558.66494519,0.00036772,2]
[313988305,1707916241608,-500.0,0.00036772,2]
[313988306,1707916241621,-771.69,0.00036772,2]
[313988307,1707916241638,-604.74771828,0.00036772,2]
[313988308,1707916241653,-950.21,0.00036772,2]
[313988309,1707916241668,-500.0,0.00036772,2]
[313988310,1707916241682,-2120.6,0.00036772,2]
[313988311,1707916241696,-500.0,0.00036772,2]
[313988312,1707916241710,-500.0,0.00036772,2]
[313988313,1707916241726,-500.0,0.00036772,2]
[313988314,1707916241741,-500.0,0.00036772,2]
[313988315,1707916241756,-3157.8,0.00036772,2]
[313988316,1707916241770,-526.91558944,0.00036772,2]
[313988317,1707916241784,-211.66503246,0.00036772,2]
[313988318,1707916241798,-1276.33,0.00036772,2]
[313988319,1707916241813,-500.0,0.00036772,2]
[313988320,1707916241827,-240.20516834,0.00036772,2]
[313988321,1707916241841,-528.72155852,0.00036772,2]
[313988322,1707916241856,-843.61,0.00036772,2]
[313988323,1707916241870,-716.22,0.00036772,2]
[313988324,1707916241887,-1970.99,0.00036772,2]
[313988325,1707916241901,-2292.19,0.00036772,2]
[313988326,1707916241916,-552.36598104,0.00036772,2]
[313988327,1707916241933,-5112.4,0.00036772,2]
[313988328,1707916241947,-566.80154629,0.00036772,2]
[313988329,1707916241966,-796.64,0.00036772,2]
[313988330,1707916241982,-500.0,0.00036772,2]
[313988331,1707916241997,-500.0,0.00036772,2]
[313988332,1707916242011,-708.79,0.00036772,2]
[313988333,1707916242026,-537.9645044,0.00036772,2]
[313988334,1707916242041,-1156.18,0.00036772,2]
[313988335,1707916242057,-939.41,0.00036772,2]
[313988336,1707916242071,-500.0,0.00036772,2]
[313988337,1707916242086,-1241.11,0.00036772,2]
[313988338,1707916242100,-2055.34,0.00036772,2]
[313988339,1707916242115,-1135.4,0.00036772,2]
[313988340,1707916242129,-1302.64,0.00036772,2]
[313988341,1707916242143,-562.22,0.00036772,2]
[313988342,1707916242158,-1232.32,0.00036772,2]
[313988343,1707916242172,-766.13,0.00036772,2]
[313988344,1707916242187,-543.4365373,0.00036772,2]
[313988345,1707916242201,-564.62529154,0.00036772,2]
[313988346,1707916242215,-541.14104594,0.00036772,2]
[313988347,1707916242229,-500.0,0.00036772,2]
[313988348,1707916242244,-500.0,0.00036772,2]
[313988349,1707916242258,-500.0,0.00036772,2]
[313988350,1707916242272,-16957.54,0.00036772,2]
[313988351,1707916242287,-500.0,0.00036772,2]
[313988352,1707916242301,-500.0,0.00036772,2]
[313988353,1707916242316,-540.52002048,0.00036772,2]
[313988354,1707916242330,-500.0,0.00036772,2]
[313988355,1707916242345,-500.0,0.00036772,2]
[313988356,1707916242359,-217.65681922,0.00036772,2]
[313988357,1707916242374,-2522.98,0.00036772,2]
[313988358,1707916242388,-525.47680591,0.00036772,2]
[313988359,1707916242405,-1216.7,0.00036772,2]
[313988360,1707916242423,-500.0,0.00036772,2]
[313988361,1707916242441,-500.0,0.00036772,2]
[313988362,1707916242457,-500.0,0.00036772,2]
[313988363,1707916242473,-500.0,0.00036772,2]
[313988364,1707916242488,-500.0,0.00036772,2]
[313988365,1707916242503,-500.0,0.00036772,2]
[313988366,1707916242518,-903.74,0.00036772,2]
[313988367,1707916242533,-500.0,0.00036772,2]
[313988368,1707916242547,-568.66676461,0.00036772,2]
[313988369,1707916242562,-5061.78,0.00036772,2]
[313988370,1707916242577,-500.0,0.00036772,2]
[313988371,1707916242592,-929.07,0.00036772,2]
[313988372,1707916242607,-435.59861855,0.00036772,2]
[313988373,1707916242621,-500.0,0.00036772,2]
[313988374,1707916242635,-2422.7,0.00036772,2]
[313988375,1707916242650,-572.51,0.00036772,2]
[313988376,1707916242666,-500.0,0.00036772,2]
[313988377,1707916242682,-17211.93990481,0.00036772,3]
[313988382,1707916243586,-2629.58178193,0.00036772,3]
[313988383,1707916243721,-4214.641458,0.00036772,3]
[313988384,1707916244288,-737.5616687,0.00036772,3]
[313988385,1707916244300,-4690.0469216,0.00036772,3]
[313988386,1707916244311,-5852.77802023,0.00036772,3]
[313988389,1707916244777,-2627.76022133,0.00036772,3]
[313988390,1707916244789,-112649.91386234,0.00036772,3]
[313988391,1707916244801,-296.95776435,0.00036772,3]
[313988392,1707916244813,-1060.31500001,0.00036772,3]
[313988393,1707916244826,-566.62860673,0.00036772,3]
[313988394,1707916244959,-327.71451975,0.00036772,3]
[313988395,1707916244975,-403.96999975,0.00036772,3]
[313988396,1707916244987,-22508.3470919,0.00036772,3]
[313988397,1707916244996,-205379.8248541,0.00036772,4]
[313988398,1707916245008,-832.77888495,0.00036772,4]
[313988399,1707916245020,-2514.06406546,0.00036772,4]
[313988400,1707916245036,-475.44970042,0.00036772,4]
[313988405,1707916245963,-500.0,0.00036712,2]
[313988406,1707916245976,-324.03644602,0.00036771,4]
[313988407,1707916246001,-371.83683429,0.00036771,4]
[313988408,1707916246013,-546.006,0.00036771,4]
[313988409,1707916246024,-6378.38208233,0.00036771,4]
[313988410,1707916246768,-32438.71751639,0.00036771,4]
[313988411,1707916246871,-829.32938024,0.00036771,4]
[313988412,1707916246882,-425.400001,0.00036771,4]
[313988413,1707916246894,-16866.64457545,0.00036771,4]
[313988414,1707916246903,-500.0,0.00036771,15]
[313988415,1707916246912,-500.0,0.00036771,15]
[313988416,1707916246921,-309.43185752,0.00036771,15]
[313988417,1707916246930,-1394.27166772,0.00036772,2]
[313988418,1707916246961,-699.39833228,0.00036772,2]
[313988419,1707916246971,-517.54,0.00036772,2]
[313988420,1707916246981,-808.19061759,0.00036772,2]
[313988421,1707916246993,-301.36826649,0.00036772,2]
[313988422,1707916247004,-472.86111592,0.00036772,2]
[313988423,1707916247014,-10.49667176,0.00036772,2]
[313988424,1707916247025,-295.25514135,0.00036772,2]
[313988425,1707916247041,-1289.80818689,0.00036772,2]
[313988426,1707916247051,-347.66353361,0.00036772,4]
[313988427,1707916247063,-7763.54002599,0.00036772,4]
[313988428,1707917195103,-176.01362308,0.00025153,2]
[313988429,1707917303409,-500.0,0.00026199,2]
[313988430,1707917303432,-157.26089428,0.000262,2]
[313988431,1707917303453,-150.0,0.00026298,2]
[313988432,1707917303473,-43302.80546773,0.00026299,2]
[313988433,1707917303494,-14797.0,0.000263,2]
[313988434,1707917303516,-150.0,0.000284,2]
[313988435,1707917303535,-409.44210918,0.00028479,2]
[313988436,1707917303558,-106566.26187274,0.0002848,7]
[313988437,1707917303584,-6097.47903944,0.0002848,7]
[313988438,1707917303607,-155.0,0.0003,2]
[313988439,1707917347393,-3900.0,0.0002838,2]
[313988440,1707917350789,-40.6771,0.0002838,2]